Cogmind - Beta 12 @@@ ROGUE MODE // 2023.07.21 @ 23:48:52 Player: javashane Result: Self-destructed Performance ------------- Evolutions (4) 2000 Regions Visited (7) 1400 Robots Destroyed (20) 100 Value Destroyed (232) 232 Prototype IDs (1) 20 Alien Tech Used (0) 0 Bonus (0) 0 TOTAL SCORE: 3752 Bonus ------- None Cogmind --------- Core Integrity 738/850 Matter 18/300 Energy 25/100 System Corruption 2% Temperature Cool (1) Movement Flying (32) Location -6/Factory Parts ------- > --- POWER (3) -------- (None) > --- PROPULSION (6) --- VTOL Module Improved Flight Unit Improved Flight Unit Surge Thruster > --- UTILITY (4) ------ Small Storage Unit > --- WEAPON (2) ------- Magnetic Acceleration Cannon > --- INVENTORY (8) ---- Advanced ECM Suite Grenade Launcher Improved Datajack Remote Datajack Peak State ------------ > --- POWER ------------ Light Ion Engine Light Ion Engine > --- PROPULSION ------- Improved Flight Unit Improved Flight Unit Surge Thruster Surge Thruster Surge Thruster > --- UTILITY ---------- Small Storage Unit Reaction Control System Shield Generator > --- WEAPON ----------- Remote Datajack > --- INVENTORY -------- VTOL Module Improved Flight Unit Surge Thruster Spread Laser Grenade Launcher Rocket Launcher Improved Datajack Remote Datajack [Rating: 29] Favorites ----------- Power Light Ion Engine Engine Light Ion Engine Propulsion Improved Flight Unit Leg Aluminum Leg Flight Unit Improved Flight Unit Utility Small Storage Unit Device Shield Generator Storage Small Storage Unit Processor Terrain Scan Processor Weapon Grenade Launcher Energy Gun EM Pulse Gun Ballistic Gun Assault Rifle Ballistic Cannon Magnetic Acceleration Cannon Launcher Grenade Launcher Special Weapon Remote Datajack Build | -11 -10 -9 -9 -8 -7 -7 -6 ------- Run | Jun Mat Mat Min Mat Fac Sto Fac Slots Evolved 8 | . . 2 . 2 2 . 2 Power 2 | . . . . . 2 . . Propulsion 4 | . . 2 . 1 . . 1 Utility 2 | . . . . 1 . . 1 Weapon . | . . . . . . . . Parts Attached 37 | 7 5 9 . 6 3 . 7 Power 2 | 1 . . . . 1 . . Engine 2 | 1 . . . . 1 . . Core . | . . . . . . . . Reactor . | . . . . . . . . Propulsion 13 | 2 2 4 . 1 . . 4 Treads . | . . . . . . . . Leg 2 | 2 . . . . . . . Wheel . | . . . . . . . . Hover . | . . . . . . . . Flight 11 | . 2 4 . 1 . . 4 Utility 12 | 2 2 3 . 4 1 . . Device 7 | 1 1 2 . 2 1 . . Storage 2 | 1 . 1 . . . . . Processor 3 | . 1 . . 2 . . . Hackware . | . . . . . . . . Protection . | . . . . . . . . Artifact . | . . . . . . . . Weapon 10 | 2 1 2 . 1 1 . 3 Energy Gun 3 | 1 . 1 . 1 . . . Energy Cannon . | . . . . . . . . Ballistic Gun 1 | 1 . . . . . . . Ballistic Cannon 1 | . . . . . . . 1 Launcher 4 | . 1 1 . . . . 2 Special Weapon 1 | . . . . . 1 . . Impact Weapon . | . . . . . . . . Slashing Weapon . | . . . . . . . . Piercing Weapon . | . . . . . . . . Special Melee Weapon . | . . . . . . . . Unidentified Prototypes 1 | . 1 . . . . . . Parts Lost 11 | . . . . . . 7 4 Power 2 | . . . . . . 2 . Propulsion 5 | . . . . . . 3 2 Utility 2 | . . . . . . 1 1 Weapon 2 | . . . . . . 1 1 Highest Loss Streak 6 | . . . . . . 6 4 To Critical Strikes . | . . . . . . . . Average Slot Usage (%) 78 | . 98 91 88 100 84 73 53 Engine 8 | . 14 11 11 9 15 9 . Flight 36 | . 26 39 44 45 38 35 33 Device 10 | . 13 11 11 9 14 13 5 Storage 6 | . . 9 11 9 7 7 6 Processor 2 | . 12 1 . 9 . . . Energy Gun 3 | . 12 9 . 9 . . . Ballistic Gun 2 | . 14 7 . . . . . Launcher 4 | . 1 1 11 9 2 . 4 Special Weapon 1 | . . . . . 4 6 . Naked Turns . | . . . . . . . . Heaviest Build 19 | 13 13 15 13 16 19 17 17 Greatest Support 22 | 20 20 18 14 19 19 19 22 Greatest Overweight (x) 3 | 3 2 1 . . . . . Average Overweight (x) . | . . . . . . . . Largest Inventory Capacity 8 | 8 8 8 8 8 8 8 8 Average Capacity 7 | 7 5 7 8 8 8 8 8 Most Carried 8 | 6 7 8 8 7 8 8 7 Average Carried 6 | 4 4 6 8 6 7 8 4 Final Capacity 8 | 8 5 8 8 8 8 8 8 Final Carried 8 | 6 5 8 8 7 8 8 4 Class Distribution -------------------- 74% | Sprinter 25% | Mutant Dominant Class ---------------- Mutant | -10/Materials Mutant | -9/Materials Sprinter | -9/Mines Sprinter | -8/Materials Sprinter | -7/Factory Sprinter | -7/Storage Sprinter | -6/Factory Resources | -11 -10 -9 -9 -8 -7 -7 -6 ----------- Run | Jun Mat Mat Min Mat Fac Sto Fac Matter Collected 410 | 239 58 7 . 14 . . 92 Remotely . | . . . . . . . . Salvage Created 208 | 40 88 8 . 59 . . 13 Parts 33 | 5 6 4 . 15 . . 3 Haulers Intercepted . | . . . . . . . . Recyclers Shooed 2 | 1 . . . . . . 1 Parts Field Recycled . | . . . . . . . . Retrieved Matter . | . . . . . . . . Parts Self-Destructed . | . . . . . . . . Prevented . | . . . . . . . . Kills | -11 -10 -9 -9 -8 -7 -7 -6 ------- Run | Jun Mat Mat Min Mat Fac Sto Fac Combat Hostiles Destroyed 16 | . 4 3 . 8 . . 1 Cannons 1 | . . . . . . . 1 AOE 15 | . 4 3 . 8 . . . Classes Destroyed 6 | 1 3 1 . . . . 1 Worker 1 | . 1 . . . . . . Tunneler 2 | 2 . . . . . . . Watcher 1 | . . 1 . . . . . Swarmer 14 | . 3 3 . 8 . . . Cutter 1 | . . . . . . . 1 Grunt 1 | . 1 . . . . . . Best Kill Streak 8 | 1 5 4 . 8 . . 1 Combat Bots Only 8 | . 4 3 . 8 . . 1 Max Kills in Single Turn 4 | 1 3 2 . 4 . . 1 Gunslinging . | . . . . . . . . Exploded 4 | . 2 2 . 4 . . . Melee . | . . . . . . . . Uniques/NPCs Destroyed . | . . . . . . . . Combat | -11 -10 -9 -9 -8 -7 -7 -6 -------- Run | Jun Mat Mat Min Mat Fac Sto Fac Damage Taken 1190 | . 82 27 . 59 24 459 539 Core 219 | . 51 . . . . 56 112 Absorbed by Shields 106 | . . 12 . 26 10 40 18 Core Remaining (%) 94 | 100 79 . 100 100 . 92 . Volleys Fired 35 | 7 6 4 . 3 1 . 14 Largest 2 | 2 2 1 . 1 1 . 1 Hottest 65 | 60 60 30 . 65 5 . 53 Shots Fired 46 | 14 10 4 . 3 1 . 14 Gun 23 | 14 8 . . 1 . . . Cannon 14 | . . . . . . . 14 Launcher 8 | . 2 4 . 2 . . . Special 1 | . . . . . 1 . . Kinetic 25 | 7 4 . . . . . 14 Thermal 1 | . . . . 1 . . . Explosive 8 | . 2 4 . 2 . . . Electromagnetic 11 | 7 4 . . . . . . Robot Hit Streak 6 | 5 4 2 . 3 1 . 6 Robot Miss Streak 4 | 4 1 . . 4 . . 3 Penetration Max . | . . . . . . . . Secondary Targets . | . . . . . . . . Shots Hit Robots 27 | 8 5 2 . 2 1 . 9 Core Hits 27 | 3 6 6 . 10 . . 2 Critical Kills . | . . . . . . . . Critical Parts Destroyed . | . . . . . . . . Critical Strikes 3 | 1 . . . . . . 2 Blast 2 | . . . . . . . 2 Corrupt 1 | 1 . . . . . . . Melee Attacks . | . . . . . . . . Impact . | . . . . . . . . Slashing . | . . . . . . . . Piercing . | . . . . . . . . Sneak Attacks . | . . . . . . . . Combat Hostiles . | . . . . . . . . Follow-up Attacks . | . . . . . . . . Damage Inflicted 1234 | 104 230 251 . 321 . . 328 Guns 149 | 104 37 . . 8 . . . Cannons 292 | . . . . . . . 292 Explosions 757 | . 193 251 . 313 . . . Melee . | . . . . . . . . Ramming 36 | . . . . . . . 36 Kinetic 368 | 51 25 . . . . . 292 Thermal 68 | . 60 . . 8 . . . Explosive 697 | . 133 251 . 313 . . . Electromagnetic 65 | 53 12 . . . . . . Impact . | . . . . . . . . Slashing . | . . . . . . . . Piercing . | . . . . . . . . Highest Corruption 2 | . . . . . . 1 2 Average Corruption 1 | . . . . . . 1 2 Corruption Purged . | . . . . . . . . Corruption Blocked . | . . . . . . . . Overload Shots . | . . . . . . . . Overflow Damage 22 | . . 10 . . . . 12 Projectiles 6 | . . . . . . . 6 Explosions 10 | . . 10 . . . . . Melee 6 | . . . . . . . 6 Knockbacks 2 | . . . . . . . 2 Impact . | . . . . . . . . Kinetic 2 | . . . . . . . 2 Secondary . | . . . . . . . . Self-Inflicted Damage 56 | . 39 . . . . . 17 Shots 1 | . 1 . . . . . . Rammed 4 | . . . . . . . 4 Targets Rammed 4 | . . . . . . . 4 Kicked . | . . . . . . . . Crushed . | . . . . . . . . Highest Temperature 58 | . 18 4 . 32 58 24 1 Average Temperature 14 | . 8 4 . 13 16 12 1 Received Heat Transfer 184 | . 12 . . 6 10 138 18 Siege Activations . | . . . . . . . . Robots Corrupted . | . . . . . . . . Combat Hostiles . | . . . . . . . . Parts Fried . | . . . . . . . . Impact Corruptions 1 | . . . . . . . 1 Robots Melted . | . . . . . . . . Combat Hostiles . | . . . . . . . . Parts Melted . | . . . . . . . . Heat Transferred 110 | . 100 . . 10 . . . Parts Sabotaged . | . . . . . . . . Parts Stolen . | . . . . . . . . Parts Stripped . | . . . . . . . . Power Chain Reactions 1 | . 1 . . . . . . Missiles Intercepted . | . . . . . . . . Alert | -11 -10 -9 -9 -8 -7 -7 -6 ------- Run | Jun Mat Mat Min Mat Fac Sto Fac Peak Influence 320 | 10 161 221 116 320 196 174 102 Initial 151 | . 6 67 85 37 151 89 65 Average 90 | 7 45 89 91 201 159 106 79 Maximum Alert Level 1 | . . 1 . 1 . . . Low Security (%) 94 | 100 100 94 100 34 100 100 100 Level 1 5 | . . 5 . 65 . . . Level 2 . | . . . . . . . . Level 3 . | . . . . . . . . Level 4 . | . . . . . . . . Level 5 . | . . . . . . . . High Security . | . . . . . . . . Max Security . | . . . . . . . . Squads Dispatched 14 | . 2 2 . 3 1 3 3 Investigation 1 | . . . . 1 . . . Extermination . | . . . . . . . . Reinforcement 11 | . 2 2 . 2 1 1 3 Assault 2 | . . . . . . 2 . Garrison . | . . . . . . . . Intercept . | . . . . . . . . Searches Triggered . | . . . . . . . . Construction Impeded 1 | . . 1 . . . . . Haulers Reinforced 1 | . . . . . . . 1 Active Scanning Responses . | . . . . . . . . Cargo Convoy Interrupts . | . . . . . . . . Stealth | -11 -10 -9 -9 -8 -7 -7 -6 --------- Run | Jun Mat Mat Min Mat Fac Sto Fac Distress Signals 8 | . 1 3 . 1 1 1 1 Communications Jammed . | . . . . . . . . Distress Signals . | . . . . . . . . Times Spotted 78 | . 7 7 . 23 5 29 7 Peak Tracking Total 25 | . 6 6 . 15 3 25 4 Tactical Retreats 6 | . 1 . . 2 1 1 1 Traps | -11 -10 -9 -9 -8 -7 -7 -6 ------- Run | Jun Mat Mat Min Mat Fac Sto Fac Traps Triggered 3 | . . . . . 2 . 1 Indirectly . | . . . . . . . . Trap Hack Attempts . | . . . . . . . . Triggered . | . . . . . . . . Disarmed . | . . . . . . . . Reprogrammed . | . . . . . . . . Reused . | . . . . . . . . Traps Extracted . | . . . . . . . . Installed . | . . . . . . . . Triggered . | . . . . . . . . Machines | -11 -10 -9 -9 -8 -7 -7 -6 ---------- Run | Jun Mat Mat Min Mat Fac Sto Fac Machines Disabled 1 | . . 1 . . . . . Max in Single Turn 1 | . . 1 . . . . . Machines Repaired . | . . . . . . . . Machines Sabotaged . | . . . . . . . . Overloaded Fab Kills . | . . . . . . . . Hacking | -11 -10 -9 -9 -8 -7 -7 -6 --------- Run | Jun Mat Mat Min Mat Fac Sto Fac Machines Accessed 3 | . . . . 1 . 1 1 Terminals 2 | . . . . 1 . 1 . Fabricators . | . . . . . . . . Repair Stations . | . . . . . . . . Recycling Units 1 | . . . . . . . 1 Scanalyzers . | . . . . . . . . Garrison Access . | . . . . . . . . Total Hacks 11 | . . . . 3 . 4 4 Successful 6 | . . . . 2 . . 4 Failed 5 | . . . . 1 . 4 . Catastrophic . | . . . . . . . . Database Lockouts . | . . . . . . . . Manual 3 | . . . . 2 . 1 . Terminals 7 | . . . . 3 . 4 . Fabricators . | . . . . . . . . Repair Stations . | . . . . . . . . Recycling Units 4 | . . . . . . . 4 Scanalyzers . | . . . . . . . . Garrison Access . | . . . . . . . . Terminal Hacks 2 | . . . . 2 . . . Record 2 | . . . . 2 . . . Fabricator Hacks . | . . . . . . . . Repair Station Hacks . | . . . . . . . . Recycling Unit Hacks 4 | . . . . . . . 4 Recycle Component 1 | . . . . . . . 1 Process 1 | . . . . . . . 1 Report Inventory 1 | . . . . . . . 1 Retrieve Matter 1 | . . . . . . . 1 Scanalyzer . | . . . . . . . . Garrison Access Hacks . | . . . . . . . . Unauthorized Hacks . | . . . . . . . . Terminals . | . . . . . . . . Fabricators . | . . . . . . . . Repair Stations . | . . . . . . . . Recycling Units . | . . . . . . . . Scanalyzers . | . . . . . . . . Garrison Access . | . . . . . . . . Data Cores Recovered . | . . . . . . . . Used . | . . . . . . . . Hacking Detections 2 | . . . . 1 . 1 . Full Trace Events 1 | . . . . 1 . . . Feedback Events . | . . . . . . . . Feedback Blocked . | . . . . . . . . Robot Schematics Acquired . | . . . . . . . . Robots Built . | . . . . . . . . Authchips . | . . . . . . . . Time . | . . . . . . . . Total Robot Build Rating . | . . . . . . . . Part Schematics Acquired . | . . . . . . . . Parts Built . | . . . . . . . . Authchips . | . . . . . . . . Time . | . . . . . . . . Total Part Build Rating . | . . . . . . . . Parts Repaired . | . . . . . . . . Time . | . . . . . . . . Parts Recycled 1 | . . . . . . . 1 Recycled Matter 10 | . . . . . . . 10 Retrieved Matter 10 | . . . . . . . 10 Retrieved Components . | . . . . . . . . Parts Scanalyzed . | . . . . . . . . Part Schematics Acquired . | . . . . . . . . Parts Damaged . | . . . . . . . . Bothacking | -11 -10 -9 -9 -8 -7 -7 -6 ------------ Run | Jun Mat Mat Min Mat Fac Sto Fac Used RIF Installer . | . . . . . . . . Robots Hacked 1 | . . . . . 1 . . Non-combat 1 | . . . . . 1 . . Combat . | . . . . . . . . Robot Hacks Applied 1 | . . . . . 1 . . find_recycling 1 | . . . . . 1 . . Relay Couplers Released . | . . . . . . . . Fabnet Peak Effective % . | . . . . . . . . Robots Rewired . | . . . . . . . . Allies Hacked . | . . . . . . . . Hacks Repelled . | . . . . . . . . Allies | -11 -10 -9 -9 -8 -7 -7 -6 -------- Run | Jun Mat Mat Min Mat Fac Sto Fac Total Allies 5 | . . . 3 . . 2 . Largest Group 3 | . . . 3 1 . 2 . Highest-Rated Group 62 | . . . 40 8 . 62 . Highest-Rated Ally 31 | . . . 16 8 . 31 . Total Orders 3 | . . . 3 . . . . ROAM 2 | . . . 2 . . . . FOLLOW 1 | . . . 1 . . . . Ally Attacks 12 | . . . 5 1 . 6 . Total Damage 120 | . . . 46 11 . 63 . Kills 1 | . . . 1 . . . . Allies Corrupted . | . . . . . . . . Allies Melted . | . . . . . . . . Intel | -11 -10 -9 -9 -8 -7 -7 -6 ------- Run | Jun Mat Mat Min Mat Fac Sto Fac Robot Analysis Total . | . . . . . . . . Derelict Logs Recovered 1 | . . . 1 . . . . Drone Launches . | . . . . . . . . Drone Recoveries . | . . . . . . . . Exploration | -11 -10 -9 -9 -8 -7 -7 -6 ------------- Run | Jun Mat Mat Min Mat Fac Sto Fac Turns Passed 1289 | 184 146 76 175 95 180 123 310 Spaces Moved 1922 | 53 251 152 240 244 453 290 239 Core 7 | 7 . . . . . . . Treads . | . . . . . . . . Legs 51 | 46 5 . . . . . . Wheels . | . . . . . . . . Hover . | . . . . . . . . Flight 1864 | . 246 152 240 244 453 290 239 Fastest Speed 25 | 50 37 27 27 25 25 25 26 Average Speed 30 | 125 39 32 27 25 25 27 26 Slowest Speed 200 | 200 180 74 27 28 25 37 28 Overloaded Moves . | . . . . . . . . Propulsion Burnouts . | . . . . . . . . Robots Hopped 21 | . 2 1 1 5 1 10 1 Cave-ins Triggered . | . . . . . . . . Exploration Rate (%) 25 | 4 37 20 40 31 11 56 6 Regions Visited 7 Branch Regions 2 Pre-discovered Areas . | . . . . . . . . Known Exits Taken 2 | . . . 1 1 . . . Unknown Exits Taken 5 | 1 1 1 . . 1 1 . Scrap Searched 1 | . . . 1 . . . . Spaces Dug . | . . . . . . . . Terrain Destroyed 48 | . 16 17 . 13 . . 2 Melee . | . . . . . . . . Projectile 2 | . . . . . . . 2 AOE 46 | . 16 17 . 13 . . . Terrain Rammed . | . . . . . . . . Walls Destroyed . | . . . . . . . . Machines Disabled . | . . . . . . . . Actions | -11 -10 -9 -9 -8 -7 -7 -6 --------- Run | Jun Mat Mat Min Mat Fac Sto Fac Total 2537 | 153 287 169 348 268 518 324 470 Wait 490 | 80 16 . 108 18 18 45 205 Move 1874 | 52 246 149 237 233 450 270 237 Hop 20 | . 2 1 1 5 1 9 1 Pick Up 26 | 7 5 4 1 2 5 . 2 Fast Attach 11 | 6 2 1 . 1 . . 1 Attach 13 | 1 2 1 . 3 1 . 5 Detach 3 | . 1 . . 1 1 . . Swap 13 | . 1 7 . 2 2 . 1 Drop 12 | . 6 2 1 . 3 . . Fire 35 | 7 6 4 . 3 1 . 14 Melee . | . . . . . . . . Ram 4 | . . . . . . . 4 Kick . | . . . . . . . . Crush . | . . . . . . . . Escape Stasis 36 | . . . . . 36 . . Rewire . | . . . . . . . . Trap . | . . . . . . . . Miscellaneous . | . . . . . . . . Route ------- -11/Junkyard -10/Materials (discovered 2 exits: [*Mat] / [*Min]) -9/Materials -9/Mines (discovered 2 exits: *Mat x2) -8/Materials -7/Factory -7/Storage -6/Factory History --------- Turn | Location | Event 12 | -11/Junkyard | Discovered new exit (range 16) 185 | -11/Junkyard | Entered Materials 276 | -10/Materials | Discovered new exit (range 12) 309 | -10/Materials | Build established: Mutant 324 | -10/Materials | Discovered new exit (range 15) 331 | -10/Materials | Entered another Materials area 331 | -9/Materials | Evolved 2 slots: Propulsion x2 401 | -9/Materials | Discovered new exit (range 15) 407 | -9/Materials | Entered Mines 413 | -9/Mines | Identified exit to Materials 416 | -9/Mines | Assisted by bots powering up and referring to "LRC-V3" 418 | -9/Mines | Discovered exit to Materials (range 12) 510 | -9/Mines | Received a Rocket Launcher from a helpful Derelict 582 | -9/Mines | Entered Materials 582 | -8/Materials | Accompanied by 1 ally 582 | -8/Materials | Evolved 2 slots: Propulsion x1, Utility x1 636 | -8/Materials | Destroyed 8 combat bots 647 | -8/Materials | Build established: Sprinter 676 | -8/Materials | Discovered new exit (range 5) 677 | -8/Materials | Identified exit to Factory 677 | -8/Materials | Entered Factory 677 | -7/Factory | Evolved 2 slots: Power x2 814 | -7/Factory | Discovered new exit (range 15) 857 | -7/Factory | Entered Storage 882 | -7/Storage | Met a pair of Derelict thieves 978 | -7/Storage | Discovered new exit (range 6) 980 | -7/Storage | Entered Factory 980 | -6/Factory | Evolved 2 slots: Propulsion x1, Utility x1 1010 | -6/Factory | Lost 6 parts (1p3n1u1w) 1290 | -6/Factory | Self-destructed Last Messages --------------- 01249_ System corrupted (+2). 01250_ Acquired 5 matter. 01258_ Acquired 4 matter. 01261_ Acquired 18 matter. 01265_ K-01 Serf sends out distress signal. 01266_ Shield Generator destroyed. 01271_ Destroyed VTOL Module. 01271_ S-27 Virus knocked back. 01277_ R-10 Processor collects Surge Thruster. 01280_ R-10 Processor collects Hpw. Tractor Beam. 01283_ K-01 Serf destroyed. 01284_ Acquired 18 matter. 01285_ A-15 Conveyor calls for reinforcements. 01285_ ALERT: Hostile activity reported, dispatching reinforcements to area. 01285_ Imp. Flight Unit destroyed. 01285_ R-10 Processor suffers critical hit (Burn). 01286_ R-10 Processor collects Wheel. 01288_ Surge Thruster destroyed. 01290_ Rocket Launcher destroyed. Map ----- +----------------------------------------------------+ | ?????????????????????????????????????????????????? | | ?????????????????????????????????????????????????? | | ?????????????????????????????????????????????????? | | ?????????????????????????????????????????????????? | | ?????????????????????????????????????????????????? | | ?????????????????????????????????????????????????? | | ?????????????????????????????????????????????????? | | ?????????????????????????????????????????????????? | | ????????????????????????#########????????????????? | | ???????????????????????? ?????????????????? | | ???????????????????????? ??????????????????? | | ???????????????????????? ???????????????????? | | ????????????????????????# #????????????????????? | | ????????????????????????#%s #????????????????????? | | ????????????????????????# #????????????????????? | | ????????????????????????# #????????????????????? | | ????????????????????????#s s#????????????????????? | | ????????????????????????# #????????????????????? | | ????????????????????????# ##???????????????????? | | ????????????????????????# #???????????????????? | | ????????????????????????# ##???????????????????? | | ????????????????????????# AT#???????????????????? | | ????????????????????????# %#???????????????????? | | ???????????????????????## ##???????????????????? | | ???????????????????????#;! ##???????????????????? | | ????????????????????#####@ ;#???????????????????? | | ????????????????????# gR##???????????????????? | | ????????????????????# ^^ %#????????????????????? | | ????????????????????# #????????????????????? | | ????????????????????# #############????????? | | ????????????????????# #????????? | | ????????????????????# ##### #????????? | | ????????????????????# #???# ########## | | ????????????????????######+###### | | ??????????????????????# ##+##+############# | | ??????????????????????# """ # #????????? | | ??????????????????????# """ #"""" #????????? | | ??????????????????????# """ #"""" #????????? | | ??????????????????????# #"""" #????????? | | ??????????????????????# """ #"""" #????????? | | ??????????????????????# """ #"""" ! #????????? | | ??????????????????????# """ #"""" #????????? | | ??????????????????????# #"""" #????????? | | ??????????????????????########## #????????? | | ???????????????????????????????##########????????? | | | | | | | | | | | +----------------------------------------------------+ Best States ------------- Heat Dissipation 37 Energy Generation 15 Energy Capacity 150 Matter Stores 248 Matter Capacity 300 Sight Range 16 Terrain Scan Range 16 Terrain Scan Density 85 Evasion (%) 73 Targeting Accuracy 8 Item Schematics ----------------- None Robot Schematics ------------------ None Fabricated ------------ Nothing Alien Tech Used ----------------- None Achievements -------------- Can't Catch Me Challenges ------------ None Game ------ Seed LongswordSpreadKatana Manual? 0 Play Time 00:36:52 Cumulative 14.5 hours Start 2023.07.21 @ 06:33:24 End 2023.07.21 @ 23:48:52 Sessions 5 Manual Loads 0 Difficulty Rogue Special Mode None Game No. 21 Rogue 20 Adventurer 1 Explorer 0 Win Type - Total 0 Types 0/0/0/0/0/0/0/0/0 Lore% 6 Gallery% 20 Achievement% 17 Wizard Run 0 Options --------- ASCII 0 Keyboard 0 Movement Arrows Keybinds 0 Fullscreen 1 Font 24/Smallcaps Map View 76x50 Tactical HUD 1 Map Filters NONE Filters NONE Steam 1 RUN: acf9e981-db92-4851-b7f2-b72add9ab785